bitfinex/quotes_BTCUSD_20250421
["timestamp","ask_amount","ask_price","bid_price","bid_amount"]
[1745209070079,0.0456,87007.0,86980.0,0.25609647]
[1745209070216,0.11944791,87006.0,86980.0,0.25609647]
[1745209071603,0.0465,87005.0,86980.0,0.25609647]
[1745209071777,0.11944791,87004.0,86980.0,0.25609647]
[1745209072416,0.11944791,87004.0,86981.0,0.00229892]
[1745209072636,0.11944791,87004.0,86980.0,0.25709647]
[1745209073416,0.11944791,87004.0,86980.0,0.23913055]
[1745209073620,0.11944791,87004.0,86980.0,0.20982602]
[1745209073983,0.11944791,87004.0,86980.0,0.25753438]
[1745209075244,0.11944791,87004.0,86981.0,1.08836]
[1745209081112,0.11944791,87004.0,86982.0,0.00229874]
[1745209084047,0.11944791,87004.0,86990.0,0.13705424]
[1745209084252,0.11944791,87004.0,86991.0,0.00229871]
[1745209085997,0.0464,87016.0,86995.0,0.34]
[1745209086183,0.0464,87016.0,87000.0,0.13705424]
[1745209086353,0.0464,87016.0,87001.0,0.00229827]
[1745209086960,0.0464,87016.0,87000.0,0.13705424]
[1745209087339,0.0464,87016.0,87000.0,0.20874293]
[1745209089123,0.0464,87016.0,86992.0,0.22364791]
[1745209089811,0.0464,87016.0,86993.0,0.1042]
[1745209090013,0.0464,87016.0,86993.0,0.22364791]
[1745209091171,0.0464,87014.0,86993.0,0.1042]
[1745209091377,0.11944791,87013.0,86993.0,0.1042]
[1745209091823,0.0464,87012.0,86993.0,0.1042]
[1745209092059,0.0464,87010.0,86993.0,0.1042]
[1745209092238,0.0464,87008.0,86993.0,0.1042]
[1745209092559,0.0469,87005.0,86993.0,0.1042]
[1745209092779,0.0464,87002.0,86993.0,0.1042]
[1745209092969,0.0464,87000.0,86994.0,0.984]
[1745209094233,0.0464,87000.0,86995.0,0.00229878]
[1745209094431,0.0469,87003.0,86995.0,0.3422987]
[1745209094642,0.0469,87003.0,86995.0,0.34]
[1745209097376,0.0469,87003.0,86996.0,0.1042]
[1745209097762,0.0399,87003.0,86996.0,0.1042]
[1745209100160,0.0399,87003.0,86997.0,0.00229858]
[1745209101978,0.0464,87006.0,86997.0,0.00229858]
[1745209104889,0.0464,87006.0,86996.0,0.1042]
[1745209105281,0.0394,87006.0,86996.0,0.1042]
[1745209108403,0.0394,87006.0,86997.0,0.0022984]
[1745209108573,0.0394,87006.0,86996.0,0.1042]
[1745209109339,0.0394,87006.0,86995.0,0.1009463]
[1745209109547,0.0394,87006.0,86997.0,0.1042]
[1745209112358,0.0394,87006.0,86998.0,0.10288]
[1745209113004,0.0324,87006.0,86998.0,0.10288]
[1745209113484,0.0465,87005.0,86998.0,0.10288]
[1745209116055,0.0474,87004.0,86998.0,0.10288]
[1745209120766,0.0404,87004.0,86998.0,0.10288]
[1745209124119,0.0404,87004.0,86999.0,0.98396]
[1745209126502,0.0457,87002.0,86999.0,0.98396]
[1745209128532,0.0387,87002.0,86999.0,0.98396]
[1745209136176,0.0317,87002.0,86999.0,0.98396]
[1745209141019,0.0467,87000.0,86999.0,0.98396]
[1745209141168,0.0963,87000.0,86999.0,0.98396]
[1745209141582,0.21574791,87000.0,86999.0,0.98396]
[1745209141785,0.21674791,87000.0,86999.0,0.98396]
[1745209142367,0.22547259,87000.0,86999.0,0.98396]
[1745209143196,0.0963,86999.0,86998.0,0.10288]
[1745209143410,0.21574791,86999.0,86998.0,0.10288]
[1745209144447,0.22644969,86999.0,86998.0,0.10288]
[1745209146454,0.21574791,86999.0,86998.0,0.10288]
[1745209146713,0.23028876,86999.0,86998.0,0.10288]
[1745209147072,0.0941,86998.0,86980.0,0.04770836]
[1745209147282,0.0941,86995.0,86981.0,0.10288]
[1745209147602,0.0486,86993.0,86981.0,0.10288]
[1745209147814,0.0486,86991.0,86981.0,0.10288]
[1745209147996,0.0486,86988.0,86981.0,0.10288]
[1745209148191,0.0486,86985.0,86981.0,0.10301591]
[1745209148394,0.16804791,86985.0,86981.0,0.10301591]
[1745209149230,0.0486,86984.0,86981.0,0.10301591]
[1745209150995,0.0486,86990.0,86981.0,0.10631507]
[1745209151199,0.0486,86990.0,86981.0,0.10401591]
[1745209151962,0.0486,86990.0,86982.0,0.00229901]
[1745209152489,0.0486,86990.0,86981.0,0.10401591]
[1745209153860,0.0486,86990.0,86982.0,0.10288]
[1745209154400,0.0496,86990.0,86983.0,1.08704]
[1745209155045,0.11944791,86989.0,86983.0,1.08704]
[1745209155177,0.11944791,86989.0,86983.0,0.98416]
[1745209155380,0.11944791,86989.0,86984.0,0.10288]
[1745209156181,0.0941,86988.0,86984.0,0.10288]
[1745209156394,0.0486,86986.0,86984.0,0.10288]
[1745209156836,0.21354791,86985.0,86984.0,0.10288]
[1745209159096,0.20654791,86985.0,86984.0,0.10288]
[1745209167019,0.0941,86985.0,86984.0,0.10288]
[1745209169854,0.21354791,86985.0,86984.0,0.10288]
[1745209170068,0.0941,86985.0,86984.0,0.10288]
[1745209171069,0.0951,86985.0,86984.0,0.10288]
[1745209171777,0.0881,86985.0,86984.0,0.10288]
[1745209175639,0.001,86985.0,86984.0,0.10288]
[1745209175867,0.001,86985.0,86984.0,0.10517912]
[1745209176295,0.001,86985.0,86984.0,0.11613912]
[1745209176505,0.001,86985.0,86984.0,0.11713912]
[1745209178168,0.001,86985.0,86984.0,0.23428791]
[1745209178602,0.001,86985.0,86984.0,0.23658647]
[1745209178813,0.0481,87016.0,86984.0,0.40786716]
[1745209179018,0.0481,87016.0,87006.0,0.13705146]
[1745209179192,0.0496452,87020.0,87007.0,0.10913823]
[1745209179611,0.0426452,87020.0,87007.0,0.10913823]
[1745209180389,0.0434904,87020.0,87007.0,0.10913823]
[1745209180627,0.0008452,87020.0,87007.0,0.10913823]
[1745209181033,0.0008452,87020.0,87007.0,0.22858606]
[1745209181413,0.0008452,87020.0,87010.0,0.20865612]
[1745209182808,0.0008452,87020.0,87007.0,0.22628791]
[1745209182809,0.0481,87019.0,87007.0,0.10684]
[1745209183122,0.0481,87019.0,86990.0,0.0062]
[1745209183123,0.16824791,87018.0,87008.0,0.1068]
[1745209183322,0.16824791,87018.0,86983.0,0.98416]
[1745209183323,0.09185741,87017.0,87009.0,0.1068]
[1745209183550,0.11944791,87016.0,87010.0,0.1068]
[1745209184366,0.0481,87015.0,87010.0,0.1068]
[1745209184559,0.11944791,87014.0,87010.0,0.1068]
[1745209189333,0.11944791,87014.0,86984.0,0.00106254]
[1745209189561,0.11944791,87014.0,86990.0,0.20865612]
[1745209189925,0.11944791,87014.0,86991.0,0.1068]
[1745209193150,0.0489,87013.0,86991.0,0.1068]
[1745209193359,0.11944791,87012.0,86991.0,0.1068]
[1745209193560,0.098,87011.0,86991.0,0.1068]
[1745209193761,0.11944791,87010.0,86984.0,0.00106254]
[1745209193960,0.11944791,87010.0,86985.0,0.1068]
[1745209194212,0.11944791,87010.0,86986.0,0.1068]
[1745209195893,0.0489,87009.0,86986.0,0.1068]
[1745209196098,0.0489,87006.0,86986.0,0.1068]
[1745209196296,0.0489,87004.0,86986.0,0.1068]
[1745209196497,0.11944791,87003.0,86986.0,0.1068]
[1745209200528,0.098,87001.0,86986.0,0.1068]
[1745209200751,0.0489,86999.0,86986.0,0.1068]
[1745209201013,0.11944791,86998.0,86986.0,0.1068]
[1745209201270,0.11944791,86998.0,86987.0,0.10909892]
[1745209201750,0.0489,86999.0,86987.0,0.10909892]
[1745209203424,0.0491,87001.0,86989.0,0.20865612]
[1745209203673,0.0491,87010.0,86990.0,0.00229864]
[1745209203901,0.098,87010.0,87000.0,0.20865612]
[1745209204129,0.098,87010.0,86990.0,0.32810403]
[1745209204377,0.098,87010.0,86990.0,0.20865612]
[1745209206666,0.0008452,87020.0,86990.0,0.20865612]
[1745209206667,0.0507,87016.0,87000.0,0.20865612]
[1745209206870,0.0507,87016.0,87001.0,0.00229824]
[1745209207317,0.0437,87016.0,87001.0,0.00229824]
[1745209207440,0.0465,87019.0,87006.0,0.20865612]
[1745209207652,0.0465,87019.0,87007.0,0.10949816]
[1745209208341,0.0008452,87020.0,87007.0,0.1082]
[1745209209418,0.0008452,87020.0,87007.0,0.11049796]
[1745209211655,0.0008452,87020.0,87007.0,0.1082]
[1745209214911,0.0435452,87027.0,87007.0,0.1082]
[1745209215122,0.11944791,87026.0,87007.0,0.1082]
[1745209215347,0.0465,87025.0,87007.0,0.001]
[1745209215525,0.20865612,87020.0,87008.0,0.1072]
[1745209215763,0.16594791,87019.0,87007.0,0.001]
[1745209216191,0.16594791,87019.0,87008.0,0.1072]
[1745209218087,0.0486,87018.0,87008.0,0.1072]
[1745209218286,0.16804791,87017.0,87008.0,0.1072]
[1745209218539,0.0486,87016.0,87008.0,0.1072]
[1745209218746,0.11944791,87015.0,87008.0,0.1072]
[1745209222643,0.11244791,87015.0,87008.0,0.1072]
[1745209225560,0.11244791,87015.0,87009.0,0.1072]
[1745209230821,0.0494,87014.0,87009.0,0.1072]
[1745209231071,0.11944791,87013.0,87009.0,0.1072]
[1745209231271,0.11944791,87013.0,87009.0,0.1082]
[1745209231853,0.11944791,87013.0,87010.0,0.01063488]
[1745209233329,0.11944791,87013.0,87011.0,0.11690067]
[1745209233512,0.11944791,87013.0,87011.0,0.11789268]
[1745209234662,0.11958353,87013.0,87011.0,0.11789268]
[1745209235367,0.11258353,87013.0,87011.0,0.11789268]
[1745209239350,0.00013562,87013.0,87011.0,0.11789268]
[1745209239508,0.00013562,87013.0,87011.0,0.11889268]
[1745209241507,0.00013562,87013.0,87011.0,0.01169268]
[1745209241714,0.00013562,87013.0,87012.0,0.10564]
[1745209241864,0.00013562,87013.0,87012.0,0.11443785]
[1745209243242,0.99313562,87020.0,87012.0,0.11443785]
[1745209243531,0.99313562,87020.0,87012.0,0.10564]
[1745209251038,0.98613562,87020.0,87012.0,0.10564]
[1745209257655,0.98605336,87020.0,87012.0,0.10564]
[1745209257834,0.98603258,87020.0,87012.0,0.10564]
[1745209258036,0.98603258,87020.0,87011.0,0.001]
[1745209258239,0.98603258,87020.0,87012.0,0.10564]
[1745209258604,0.97903258,87020.0,87012.0,0.10564]
[1745209262754,0.97903258,87020.0,87012.0,1.08948]
[1745209263223,0.97903258,87020.0,87013.0,0.00879613]
[1745209263570,0.97903258,87020.0,87014.0,0.00229823]
[1745209264005,0.97903258,87020.0,87013.0,0.00879613]
[1745209266633,0.97203258,87020.0,87013.0,0.00879613]
[1745209267537,0.97203258,87020.0,87014.0,0.10368]
[1745209267912,0.97203258,87020.0,87015.0,0.00096059]
[1745209270278,0.97203258,87020.0,87016.0,0.00782933]
[1745209270724,0.97203258,87020.0,87015.0,0.00096059]
[1745209270930,0.97203258,87020.0,87017.0,0.00782933]
[1745209271128,0.97203258,87020.0,87015.0,0.00096059]
[1745209271363,0.97203258,87020.0,87018.0,0.00782933]
[1745209271584,0.97203258,87020.0,87019.0,0.00095797]
[1745209271796,0.97203258,87020.0,87014.0,0.10368]
[1745209272016,0.97203258,87020.0,87015.0,0.00095797]
[1745209272454,0.97203258,87020.0,87016.0,0.10368]
[1745209272624,0.97203258,87020.0,87017.0,0.00095797]
[1745209272830,0.97203258,87020.0,87016.0,0.10368]
[1745209273004,0.97203258,87020.0,87017.0,0.0009501]
[1745209273210,0.97203258,87020.0,87018.0,0.00229823]
[1745209273601,0.97203258,87020.0,87019.0,0.00093175]
[1745209274054,0.97203258,87020.0,87019.0,0.04132407]
[1745209274270,0.96503258,87020.0,87016.0,0.10468]
[1745209274493,0.96503258,87020.0,87019.0,0.00090031]
[1745209274694,0.96503258,87020.0,87016.0,0.22412791]
[1745209274907,0.96503258,87020.0,87019.0,0.00090817]
[1745209275181,0.96503258,87020.0,87016.0,0.22412791]
[1745209275346,0.96503258,87020.0,87019.0,0.00088983]
[1745209276301,0.96503258,87020.0,87019.0,0.10368]
[1745209277348,0.96503258,87020.0,87019.0,0.10597802]
[1745209278480,0.90771722,87020.0,87019.0,0.22542593]
[1745209278790,0.81307186,87020.0,87019.0,0.24462593]
[1745209279013,0.81307186,87020.0,87019.0,0.22916849]
[1745209282139,0.80607186,87020.0,87019.0,0.22916849]
[1745209283343,0.77605187,87020.0,87019.0,0.22916849]
[1745209285418,0.76331134,87020.0,87019.0,0.22916849]
[1745209285620,0.68153547,87020.0,87019.0,0.23146643]
[1745209285848,0.62422011,87020.0,87019.0,0.22916849]
[1745209289707,0.61722011,87020.0,87019.0,0.22916849]
[1745209289911,0.61722011,87020.0,87019.0,0.10972058]
[1745209290862,0.61722011,87020.0,87019.0,0.11072058]
[1745209297533,0.61022011,87020.0,87019.0,0.11072058]
[1745209298578,0.61022011,87020.0,87019.0,1.09428058]
[1745209299025,0.70532011,87020.0,87019.0,0.99060058]
[1745209299288,0.70532011,87020.0,87019.0,1.09348058]
[1745209302288,0.82476802,87020.0,87019.0,1.09348058]
[1745209305121,0.81776802,87020.0,87019.0,1.09348058]
[1745209315658,0.81776802,87020.0,87019.0,0.99060058]
[1745209315797,0.81776802,87020.0,87019.0,1.09348058]
[1745209316669,0.72466802,87020.0,87007.0,0.04024868]
[1745209316887,0.72466802,87020.0,86993.0,0.9838]
[1745209316888,0.16544791,87015.0,87008.0,0.10288]
[1745209317091,0.16544791,87015.0,86999.0,0.033762]
[1745209317092,0.0929,87014.0,86999.0,0.033762]
[1745209317306,0.0929,87011.0,86993.0,0.9838]
[1745209317523,0.0929,87008.0,86994.0,0.10288]
[1745209317737,0.0469,87005.0,86999.0,0.03317481]
[1745209317954,0.16634791,87004.0,86999.0,0.03317481]
[1745209318178,0.046,87002.0,86994.0,0.10288]
[1745209318417,0.0469,86999.0,86995.0,0.03387062]
[1745209318625,0.0469,86997.0,86993.0,0.9838]
[1745209318840,0.0929,86997.0,86996.0,0.10288]
[1745209319078,0.21234791,86997.0,86996.0,0.10288]
[1745209319515,0.046,86996.0,86993.0,0.9838]
[1745209319742,0.16634791,86995.0,86994.0,0.10288]
[1745209319963,0.16634791,86995.0,86993.0,0.9838]
[1745209320181,0.16634791,86995.0,86994.0,0.10288]
[1745209320655,0.21234791,86995.0,86994.0,0.10288]
[1745209321139,0.13398876,86995.0,86994.0,0.10288]
[1745209321344,0.20890258,86990.0,86977.0,0.0002669]
[1745209321557,0.11944791,86989.0,86977.0,0.0002669]
[1745209321773,0.0929,86988.0,86977.0,0.0002669]
[1745209321995,0.11944791,86987.0,86977.0,0.0002669]
[1745209322263,0.0929,86986.0,86977.0,0.0002669]
[1745209322502,0.11944791,86985.0,86977.0,0.0002669]
[1745209322762,0.0929,86986.0,86977.0,0.00040252]
[1745209323011,0.0469,86996.0,86978.0,0.00229953]
[1745209323286,0.16634791,86996.0,86978.0,0.00791886]
[1745209323469,0.11944791,86995.0,86978.0,0.00561933]
[1745209323689,0.0469,86994.0,86977.0,0.00140252]
[1745209323886,0.11944791,86993.0,86977.0,0.00140252]
[1745209324374,0.0469,86991.0,86978.0,0.00575172]
[1745209324617,0.0929,86989.0,86978.0,0.00575172]
[1745209324803,0.21234791,86988.0,86977.0,0.00140252]
[1745209325009,0.0469,86987.0,86977.0,0.00140252]
[1745209325212,0.11944791,86986.0,86977.0,0.00140252]
[1745209325418,0.0476,86985.0,86978.0,0.10292]
[1745209325621,0.0476,86983.0,86979.0,0.10292]
[1745209325776,0.11944791,86982.0,86980.0,0.10292]
[1745209326186,0.16514791,86982.0,86981.0,0.00574933]
[1745209329021,0.16614791,86982.0,86981.0,0.00574933]
[1745209330397,0.18068876,86982.0,86981.0,0.00574933]
[1745209330601,0.16614791,86982.0,86981.0,0.00574933]
[1745209334627,0.16614791,86982.0,86981.0,0.10216]
[1745209334836,0.16614791,86982.0,86981.0,0.00519299]
[1745209335175,0.16614791,86982.0,86981.0,0.10295766]
[1745209336612,0.16614791,86982.0,86981.0,0.00079766]
[1745209336810,0.16614791,86982.0,86981.0,0.10295766]
[1745209337072,0.16614791,86982.0,86981.0,0.10216]
[1745209337292,0.16614791,86982.0,86981.0,0.1073052]
[1745209337587,0.16614791,86982.0,86981.0,0.0051452]
[1745209337788,0.16614791,86982.0,86981.0,0.1073052]
[1745209337941,0.16614791,86982.0,86981.0,0.10216]
[1745209338140,0.16614791,86982.0,86981.0,0.10734171]
[1745209339121,0.001,86982.0,86981.0,0.10734171]
[1745209342776,0.04224529,87002.0,86981.0,0.10834171]
[1745209343021,0.11944791,87001.0,86981.0,0.10834171]
[1745209345850,0.11944791,87001.0,86982.0,0.10216]
[1745209356123,0.11944791,87001.0,86971.0,0.00229919]
[1745209356329,0.11944791,87001.0,86972.0,0.10717652]
[1745209356522,0.11944791,87001.0,86973.0,0.10445919]
[1745209356922,0.11944791,87001.0,86974.0,0.00424533]
[1745209357142,0.11944791,87001.0,86975.0,0.00229919]
[1745209357933,0.11944791,87001.0,86976.0,0.00501554]
[1745209358142,0.11944791,87001.0,86977.0,0.00229919]
[1745209358808,0.11944791,87001.0,86974.0,0.00229919]
[1745209359227,0.11944791,87001.0,86980.0,0.20890258]
[1745209359435,0.11944791,87001.0,86981.0,0.00229901]
[1745209359861,0.11944791,87001.0,86980.0,0.20890258]
[1745209360065,0.11944791,87001.0,86982.0,0.00076759]
[1745209360221,0.11944791,87001.0,86975.0,0.00424533]
[1745209360222,0.11944791,87001.0,86981.0,0.00424339]
[1745209360426,0.11944791,87001.0,86962.0,0.06906436]
[1745209360427,0.11944791,87001.0,86982.0,0.10044]
[1745209360865,0.11944791,87001.0,86983.0,0.10044]
[1745209361076,0.03153602,86993.0,86983.0,0.10044]
[1745209363730,0.03153602,86993.0,86984.0,0.00074656]
[1745209365390,0.11944791,86992.0,86984.0,0.00074656]
[1745209365590,0.16864791,86992.0,86985.0,0.10044]
[1745209365722,0.16864791,86992.0,86962.0,0.06906436]
[1745209366069,0.16864791,86992.0,86980.0,0.20890258]
[1745209366298,0.16864791,86992.0,86971.0,0.10538008]
[1745209366511,0.16864791,86992.0,86971.0,0.10044]
[1745209366707,0.16864791,86992.0,86972.0,0.00494008]
[1745209369693,0.0454,86991.0,86972.0,0.00494008]
[1745209372080,0.0454,86991.0,86980.0,0.20890258]
[1745209372597,0.0454,86991.0,86981.0,0.0007413]
[1745209372800,0.0454,86991.0,86982.0,0.00229908]
[1745209373031,0.0454,86991.0,86981.0,0.0007413]
[1745209373183,0.0454,86991.0,86980.0,0.20890258]
[1745209373388,0.0454,86991.0,86982.0,0.00493957]
[1745209373718,0.0454,86991.0,86980.0,0.20890258]
[1745209374152,0.0454,86991.0,86981.0,0.00419827]
[1745209374561,0.0454,86991.0,86982.0,0.00229908]
[1745209374957,0.0454,86991.0,86980.0,0.20890258]
[1745209375203,0.0454,86991.0,86983.0,0.00419633]
[1745209375408,0.0454,86991.0,86973.0,0.98416]
[1745209375612,0.0454,86991.0,86984.0,0.00419633]
[1745209375812,0.0454,86991.0,86974.0,0.10044]
[1745209376207,0.0454,86991.0,86975.0,0.00494413]
[1745209376530,0.0454,86991.0,86980.0,0.20890258]
[1745209379788,0.0454,86991.0,86981.0,0.00072032]
[1745209380666,0.0384,86991.0,86981.0,0.00072032]
[1745209383307,0.0384,86991.0,86982.0,0.00229899]
[1745209383512,0.0384,86991.0,86981.0,0.00072032]
[1745209383821,0.0384,86991.0,86982.0,0.00489288]
[1745209385923,0.0384,86991.0,86983.0,0.10044]
[1745209386483,0.0384,86991.0,86984.0,0.00417256]
[1745209387313,0.0384,86991.0,86985.0,0.00072032]
[1745209387998,0.0384,86991.0,86986.0,0.98416]
[1745209388390,0.0314,86991.0,86986.0,0.98416]
[1745209388596,0.0314,86991.0,86987.0,0.00486691]
[1745209391715,0.03103133,86991.0,86987.0,0.00486691]
[1745209392928,0.03103133,86991.0,86988.0,0.1004]
[1745209393471,0.03103133,86991.0,86989.0,0.00486691]
[1745209393679,0.03153602,86993.0,86989.0,0.00486691]
[1745209393910,0.03153602,86993.0,86989.0,0.00716581]
[1745209395041,0.03153602,86993.0,86990.0,1.08456]
[1745209395269,0.03153602,86993.0,86991.0,0.1004]
[1745209395670,0.03153602,86993.0,86992.0,0.1004]
[1745209396271,0.07983602,86993.0,86992.0,0.1004]
[1745209400738,0.07983602,86993.0,86992.0,0.12948356]
[1745209404340,0.19928393,86993.0,86992.0,0.12948356]
[1745209404547,0.07983602,86993.0,86992.0,0.02908356]
[1745209404750,0.07983602,86993.0,86992.0,0.12944356]
[1745209404961,0.07983602,86993.0,86992.0,0.10036]
[1745209405824,0.07983602,86993.0,86992.0,0.12916377]
[1745209406018,0.07283602,86993.0,86992.0,0.12916377]
[1745209410265,0.02453602,86993.0,86992.0,0.12916377]
[1745209413765,0.01753602,86993.0,86992.0,0.12916377]
[1745209415492,0.18758393,86993.0,86992.0,0.10036]
[1745209421659,0.06113602,86993.0,86992.0,0.10036]
[1745209429184,0.05413602,86993.0,86992.0,0.10036]
[1745209429383,0.05413602,86993.0,86991.0,0.03014269]
[1745209429616,0.05413602,86993.0,86992.0,0.10036]
[1745209432169,0.17358393,86993.0,86992.0,0.10036]
[1745209435699,0.0473,86992.0,86985.0,0.98408]
[1745209435898,0.16454791,86991.0,86986.0,0.10036]
[1745209436277,0.11944791,86991.0,86986.0,0.10036]
[1745209436446,0.0473,86990.0,86986.0,0.10036]
[1745209436649,0.0475,86987.0,86986.0,0.10036]
[1745209436789,0.16694791,86987.0,86986.0,0.10036]
[1745209436989,0.21234791,86987.0,86986.0,0.10036]
[1745209439940,0.21234791,86987.0,86986.0,0.10463477]
[1745209440343,0.22688876,86987.0,86986.0,0.10463477]
[1745209441927,0.21234791,86987.0,86986.0,0.10463477]
[1745209442765,0.21234791,86987.0,86986.0,0.10036]
[1745209445571,0.21334791,86987.0,86986.0,0.10036]
[1745209458821,0.21334791,86987.0,86972.0,0.02541883]
[1745209459044,0.11944791,86986.0,86973.0,0.10032]
[1745209460499,0.0462,86985.0,86973.0,0.10032]
[1745209460716,0.11944791,86984.0,86973.0,0.10032]
[1745209461711,0.11944791,86984.0,86974.0,0.10032]
[1745209463679,0.11944791,86984.0,86975.0,0.10032]
[1745209464618,0.0462,86983.0,86975.0,0.10032]
[1745209464855,0.11944791,86982.0,86975.0,0.10032]
[1745209470362,0.11944791,86982.0,86972.0,0.0260291]
[1745209470548,0.0936,86981.0,86973.0,0.10032]
[1745209470716,0.11944791,86980.0,86967.0,0.98436]
[1745209470892,0.11944791,86980.0,86974.0,0.10032]
[1745209480226,0.11944791,86980.0,86972.0,0.02525509]
[1745209480365,0.0457,86979.0,86975.0,0.10032]
[1745209480567,0.0457,86977.0,86975.0,0.10032]
[1745209480818,0.11944791,86976.0,86975.0,0.10032]
[1745209481797,0.11944791,86976.0,86972.0,0.02528867]
[1745209482054,0.11244791,86976.0,86973.0,0.10032]
[1745209487754,0.11244791,86976.0,86974.0,0.10028]
[1745209494779,0.10544791,86976.0,86975.0,0.10028]
[1745209496246,0.0474,86981.0,86975.0,0.10028]
[1745209496451,0.11944791,86980.0,86975.0,0.10028]
[1745209499166,0.0496,86991.0,86976.0,0.10028]
[1745209499400,0.00353602,86993.0,86981.0,0.13705138]
[1745209499541,0.00353602,86993.0,86982.0,0.00229904]
[1745209500144,0.00353602,86993.0,86980.0,0.13705138]
[1745209500344,0.00353602,86993.0,86980.0,0.27410276]
[1745209500540,0.00353602,86993.0,86980.0,0.13705138]
[1745209501548,0.00353602,86993.0,86981.0,0.00229904]
[1745209501975,0.11944791,86992.0,86975.0,0.001]
[1745209502181,0.16684791,86992.0,86982.0,0.10028]
[1745209502444,0.15984791,86992.0,86975.0,0.001]
[1745209502666,0.15984791,86992.0,86983.0,0.10028]
[1745209507419,0.16084791,86992.0,86984.0,1.08456]
[1745209509309,0.0484,86992.0,86984.0,1.08456]
[1745209510226,0.0414,86992.0,86984.0,1.08456]
[1745209510808,0.001,86992.0,86984.0,1.08456]
[1745209513200,0.001,86992.0,86985.0,0.10249895]
[1745209513647,0.001,86992.0,86985.0,0.1002]
[1745209513925,0.001,86992.0,86980.0,0.16569405]
[1745209515269,0.001,86992.0,86981.0,1.0844]
[1745209517888,0.04643602,86997.0,86981.0,1.0844]
[1745209518077,0.11944791,86996.0,86981.0,1.0844]
[1745209519064,0.11944791,86996.0,86986.0,0.13705138]
[1745209520733,0.11944791,86996.0,86987.0,0.1002]
[1745209521101,0.11944791,86996.0,86988.0,1.08436]
[1745209524755,0.04643602,86997.0,86988.0,1.08436]
[1745209524956,0.16588393,86997.0,86988.0,1.08436]
[1745209525599,0.15888393,86997.0,86988.0,1.08436]
[1745209525898,0.15888393,86997.0,86989.0,0.1002]
[1745209531715,0.15888393,86997.0,86988.0,0.98416]
[1745209531918,0.048,86996.0,86989.0,0.1002]
[1745209533345,0.041,86996.0,86989.0,0.1002]
[1745209533547,0.0493,86995.0,86989.0,0.1002]
[1745209535192,0.0493,86995.0,86990.0,0.1002]
[1745209537405,0.0493,86995.0,86991.0,0.98412]
[1745209541111,0.03844532,87006.0,86991.0,0.98412]
[1745209541302,0.11944791,87005.0,86992.0,0.00229881]
[1745209543958,0.11944791,87005.0,86991.0,0.98416532]
[1745209544646,0.11944791,87005.0,86992.0,0.00229881]
[1745209544851,0.11944791,87005.0,86991.0,0.98416532]
[1745209545849,0.11944791,87005.0,86992.0,0.00229882]
[1745209548986,0.11244791,87005.0,86992.0,0.00229882]
[1745209549264,0.03844532,87006.0,86992.0,0.00229882]
[1745209549468,0.03844532,87006.0,86992.0,0.00229869]
[1745209549670,0.03844532,87006.0,86991.0,0.98416532]
[1745209553286,0.03844532,87006.0,86992.0,0.10012]
[1745209554783,0.03844532,87006.0,86993.0,1.08416]
[1745209560436,0.0483,87003.0,86966.0,0.0234]
[1745209560708,0.0483,87001.0,86994.0,0.98404]
[1745209561007,0.0477,86998.0,86995.0,0.10012]
[1745209561556,0.0407,86998.0,86995.0,0.10012]
[1745209561752,0.0407,86998.0,86994.0,0.98404]
[1745209562002,0.0407,86998.0,86995.0,0.10012]
[1745209565034,0.0451,86996.0,86995.0,0.10012]
[1745209565247,0.0948,86996.0,86995.0,0.10012]
[1745209565449,0.0948,86996.0,86994.0,0.98404]
[1745209565450,0.0948,86995.0,86994.0,0.98404]
[1745209565655,0.21424791,86995.0,86974.0,4.529e-05]
[1745209565859,0.0451,86993.0,86975.0,1.08416]
[1745209566061,0.0451,86991.0,86975.0,1.08416]
[1745209566268,0.0451,86989.0,86975.0,1.08416]
[1745209566502,0.21424791,86988.0,86975.0,1.08416]
[1745209566702,0.0948,86987.0,86975.0,0.98404]
[1745209566856,0.0948,86985.0,86975.0,0.98404]
[1745209567063,0.0948,86982.0,86976.0,0.10012]
[1745209567263,0.11944791,86981.0,86976.0,0.10012]
[1745209567439,0.0948,86980.0,86975.0,0.98404]
[1745209567645,0.0948,86978.0,86976.0,0.10012]
[1745209567888,0.21424791,86977.0,86976.0,0.10012]
[1745209569217,0.20724791,86977.0,86976.0,0.10012]
[1745209570892,0.20724791,86977.0,86976.0,0.10016]
[1745209570893,0.0948,86977.0,86976.0,0.10016]
[1745209571095,0.0451,86986.0,86976.0,0.10116]
[1745209571412,0.0451,86986.0,86977.0,0.00229929]
[1745209571854,0.0451,86986.0,86976.0,0.23821138]
[1745209572064,0.0451,86986.0,86976.0,0.10116]
[1745209573531,0.0451,86986.0,86977.0,0.00229921]
[1745209574223,0.0451,86986.0,86978.0,0.10008]
[1745209574442,0.001,86986.0,86978.0,0.10008]
[1745209575101,0.001,86986.0,86976.0,0.20887036]
[1745209575344,0.001,86986.0,86977.0,1.08428]
[1745209575513,0.00106248,86986.0,86977.0,1.08428]
[1745209577059,0.04376248,86987.0,86977.0,1.08428]
[1745209577315,0.04376248,86987.0,86977.0,1.08434248]
[1745209579394,0.04376248,86987.0,86978.0,0.00229909]
[1745209580001,0.0451,86994.0,86978.0,0.00229909]
[1745209581423,0.0451,86994.0,86978.0,0.00229903]
[1745209582832,0.0451,86994.0,86977.0,1.29321284]
[1745209584916,0.0381,86994.0,86977.0,1.08434248]
[1745209585398,0.11944791,86993.0,86977.0,0.98426248]
[1745209585603,0.0485,86992.0,86978.0,0.10008]
[1745209585775,0.0485,86990.0,86977.0,0.98426248]
[1745209585982,0.0485,86988.0,86979.0,0.10008]
[1745209586159,0.0485,86986.0,86979.0,0.10008]
[1745209586362,0.1217472,86985.0,86979.0,0.10008]
[1745209587759,0.0451,86984.0,86979.0,0.10008]
[1745209588061,0.00229929,86983.0,86979.0,0.10008]
[1745209592500,0.1598472,86984.0,86979.0,0.10008]
[1745209592695,0.1598472,86984.0,86980.0,0.10008]
[1745209592909,0.11944791,86983.0,86977.0,0.98426248]
[1745209593127,0.0485,86982.0,86977.0,0.98426248]
[1745209593318,0.11944791,86981.0,86978.0,0.10008]
[1745209595462,0.0492,86980.0,86978.0,0.10008]
[1745209595605,0.11944791,86979.0,86978.0,0.10008]
[1745209596460,0.16864791,86979.0,86978.0,0.10008]
[1745209600187,0.16164791,86979.0,86978.0,0.10008]